[Event "CZE-ch 2020"]
[Site "Pilsen"]
[Date "2020.08.26"]
[Round "4.30"]
[White "Ludvik, Tomas"]
[Black "Koubova, Anna Marie"]
[Result "1-0"]
[ECO "A52"]
[WhiteElo "2202"]
[BlackElo "2099"]
[Annotator "ChessBase"]
[PlyCount "73"]
[EventDate "2020.08.23"]
[EventType "swiss"]
[EventCountry "CZE"]
[SourceTitle "playchess.com"]
[Source "ChessBase"]
[SourceQuality "1"]
[TimeControl "40/5400+30:1800+30"]

1. d4 {[%emt 0:00:00]} Nf6 {[%emt 0:03:46]} 2. c4 {[%emt 0:00:00]} e5 {[%emt 0:00:09]} 3. dxe5 {[%emt 0:00:11]} Ng4 {[%emt 0:01:02]} 4. Bf4 {[%emt 0:00:10]} Nc6 {[%emt 0:00:14]} 5. Nf3 {[%emt 0:00:16]} Bb4+ {[%emt 0:00:17]} 6. Nbd2 {[%emt 0:00:18]} Qe7 {[%emt 0:00:31]} 7. e3 {[%emt 0:00:12]} Ngxe5 {[%emt 0:00:24]} 8. Nxe5 {[%emt 0:00:09]} Nxe5 {[%emt 0:00:08]} 9. Be2 {[%emt 0:00:07]} Ng6 {[%emt 0:00:44]} 10. Bg3 {[%emt 0:01:22]} Bd6 {[%emt 0:00:07]} 11. Bxd6 {[%emt 0:07:38]} Qxd6 {[%emt 0:00:08]} 12. O-O {[%emt 0:01:02]} O-O {[%emt 0:01:08]} 13. Rc1 {[%emt 0:03:14]} b6 {[%emt 0:01:18]} 14. Nf3 {[%emt 0:06:33]} Qxd1 {[%emt 0:05:15]} 15. Rfxd1 {[%emt 0:01:09]} d6 {[%emt 0:00:18]} 16. Nd4 {[%emt 0:05:43]} Bb7 {[%emt 0:02:10]} 17. Nb5 {[%emt 0:00:56]} Rac8 {[%emt 0:06:18]} 18. Nxa7 {[%emt 0:04:27]} Ra8 {[%emt 0:00:06]} 19. Nb5 {[%emt 0:00:05]} Rxa2 {[%emt 0:00:20]} 20. Rd2 {[%emt 0:00:26]} Nh4 {[%emt 0:03:51]} 21. f3 {[%emt 0:18:30]} Rc8 {[%emt 0:05:49]} 22. Kf2 {[%emt 0:01:50]} Raa8 {[%emt 0:00:25]} 23. b4 {[%emt 0:10:31]} Ng6 {[%emt 0:02:08]} 24. c5 {[%emt 0:01:26]} dxc5 {[%emt 0:00:59]} 25. bxc5 {[%emt 0:00:14]} bxc5 {[%emt 0:00:09]} 26. Rxc5 {[%emt 0:01:12]} c6 {[%emt 0:04:18]} 27. Nd6 {[%emt 0:06:05]} Rd8 {[%emt 0:00:32]} 28. Rd4 {[%emt 0:00:57]} Ba6 {[%emt 0:01:12]} 29. Bd1 {[%emt 0:00:58]} Bb5 {[%emt 0:02:30]} 30. Bb3 {[%emt 0:01:12]} Rf8 {[%emt 0:01:19]} 31. Rf5 {[%emt 0:08:24]} Ne7 {[%emt 0:03:09]} 32. Bxf7+ {[%emt 0:03:26]} Kh8 {[%emt 0:01:46]} 33. Re5 {[%emt 0:02:41]} Ra7 {[%emt 0:01:40]} 34. Bb3 {[%emt 0:02:39]} g6 {[%emt 0:01:50]} 35. Nxb5 {[%emt 0:01:25]} cxb5 {[%emt 0:01:25]} 36. Rxb5 {[%emt 0:00:13]} Nc6 {[%emt 0:00:45]} 37. Rd2 {[%emt 0:01:37]} 1-0

[Event "CZE-ch 2020"]
[Site "Pilsen"]
[Date "2020.08.26"]
[Round "4.31"]
[White "Kopriva, Martin"]
[Black "Houska, Jiri"]
[Result "0-1"]
[ECO "D97"]
[WhiteElo "2079"]
[BlackElo "2202"]
[Annotator "ChessBase"]
[PlyCount "64"]
[EventDate "2020.08.23"]
[EventType "swiss"]
[EventCountry "CZE"]
[SourceTitle "playchess.com"]
[Source "ChessBase"]
[SourceQuality "1"]
[TimeControl "40/5400+30:1800+30"]

1. d4 {[%emt 0:00:00]} Nf6 {[%emt 0:00:00]} 2. c4 {[%emt 0:00:00]} g6 {[%emt 0:00:00]} 3. Nc3 {[%emt 0:00:08]} d5 {[%emt 0:00:15]} 4. Nf3 {[%emt 0:01:07]} Bg7 {[%emt 0:00:11]} 5. Qb3 {[%emt 0:01:04]} dxc4 {[%emt 0:01:05]} 6. Qxc4 {[%emt 0:00:10]} O-O {[%emt 0:01:00]} 7. e4 {[%emt 0:01:28]} Na6 {[%emt 0:01:40]} 8. Bg5 {[%emt 0:09:31]} c5 {[%emt 0:05:11]} 9. d5 {[%emt 0:18:25]} h6 {[%emt 0:24:31]} 10. Bh4 {[%emt 0:06:06]} b5 {[%emt 0:26:51]} 11. Qd3 {[%emt 0:32:58]} c4 {[%emt 0:04:52]} 12. Qe3 {[%emt 0:02:54]} Qa5 {[%emt 0:00:58]} 13. Nd2 {[%emt 0:03:36]} Ng4 {[%emt 0:02:59]} 14. Qf3 {[%emt 0:03:16]} Ne5 {[%emt 0:00:21]} 15. Qe3 {[%emt 0:00:50]} Nb4 {[%emt 0:01:32]} 16. Rc1 {[%emt 0:01:37]} g5 {[%emt 0:01:54]} 17. Bg3 {[%emt 0:00:18]} Ned3+ {[%emt 0:00:18]} 18. Bxd3 {[%emt 0:00:05]} Nxd3+ {[%emt 0:00:06]} 19. Ke2 {[%emt 0:00:05]} b4 {[%emt 0:02:59]} 20. Nxc4 {[%emt 0:08:05]} Nxc1+ {[%emt 0:00:23]} 21. Rxc1 {[%emt 0:00:29]} Ba6 {[%emt 0:00:24]} 22. Nd1 {[%emt 0:00:44]} Qxa2 {[%emt 0:02:37]} 23. Qd3 {[%emt 0:01:31]} Rac8 {[%emt 0:02:54]} 24. Nde3 {[%emt 0:00:06]} b3 {[%emt 0:08:56]} 25. e5 {[%emt 0:01:15]} Qa4 {[%emt 0:01:15]} 26. Kf3 {[%emt 0:01:59]} Rc5 {[%emt 0:01:04]} 27. d6 {[%emt 0:00:43]} exd6 {[%emt 0:00:57]} 28. exd6 {[%emt 0:00:45]} Bxb2 {[%emt 0:03:05]} 29. d7 {[%emt 0:00:39]} Rd8 {[%emt 0:00:31]} 30. Nf5 {[%emt 0:02:54]} Qc6+ {[%emt 0:01:53]} 31. Ke2 {[%emt 0:00:47]} Rxf5 {[%emt 0:00:43]} 32. Qxf5 {[%emt 0:00:49]} Bxc1 {[%emt 0:00:46]} 0-1

[Event "CZE-ch 2020"]
[Site "Pilsen"]
[Date "2020.08.26"]
[Round "4.32"]
[White "Novotny, Martin"]
[Black "Jun, Rudolf"]
[Result "1/2-1/2"]
[ECO "A48"]
[WhiteElo "2180"]
[BlackElo "2094"]
[Annotator "ChessBase"]
[PlyCount "73"]
[EventDate "2020.08.23"]
[EventType "swiss"]
[EventCountry "CZE"]
[SourceTitle "playchess.com"]
[Source "ChessBase"]
[SourceQuality "1"]
[TimeControl "40/5400+30:1800+30"]

1. d4 {[%emt 0:03:11]} Nf6 {[%emt 0:01:04]} 2. Nf3 {[%emt 0:00:11]} g6 {[%emt 0:00:31]} 3. c4 {[%emt 0:00:07]} Bg7 {[%emt 0:00:29]} 4. Nc3 {[%emt 0:00:12]} O-O {[%emt 0:00:14]} 5. e4 {[%emt 0:00:10]} d6 {[%emt 0:01:18]} 6. h3 {[%emt 0:00:20]} e5 {[%emt 0:00:46]} 7. dxe5 {[%emt 0:00:15]} dxe5 {[%emt 0:00:14]} 8. Qxd8 {[%emt 0:00:22]} Rxd8 {[%emt 0:00:14]} 9. Nd5 {[%emt 0:00:14]} Nxd5 {[%emt 0:08:40]} 10. cxd5 {[%emt 0:00:07]} Nd7 {[%emt 0:02:00]} 11. Bg5 {[%emt 0:09:34]} f6 {[%emt 0:02:56]} 12. Be3 {[%emt 0:00:56]} c6 {[%emt 0:01:56]} 13. dxc6 {[%emt 0:08:33]} bxc6 {[%emt 0:00:12]} 14. Bc4+ {[%emt 0:17:20]} Kf8 {[%emt 0:01:33]} 15. O-O-O {[%emt 0:05:13]} Bb7 {[%emt 0:02:52]} 16. Bb3 {[%emt 0:12:31]} Ke8 {[%emt 0:01:29]} 17. Rd2 {[%emt 0:03:39]} Nb6 {[%emt 0:01:27]} 18. Rhd1 {[%emt 0:01:31]} Rxd2 {[%emt 0:00:07]} 19. Nxd2 {[%emt 0:01:45]} Rd8 {[%emt 0:03:59]} 20. a4 {[%emt 0:06:30]} Bf8 {[%emt 0:01:28]} 21. Nc4 {[%emt 0:08:23]} c5 {[%emt 0:02:25]} 22. f3 {[%emt 0:01:18]} Ba6 {[%emt 0:01:34]} 23. Rxd8+ {[%emt 0:07:12]} Kxd8 {[%emt 0:00:09]} 24. Nd2 {[%emt 0:00:08]} Kd7 {[%emt 0:00:28]} 25. a5 {[%emt 0:05:28]} Nc8 {[%emt 0:00:07]} 26. Ba4+ {[%emt 0:01:03]} Ke6 {[%emt 0:01:26]} 27. Kd1 {[%emt 0:01:03]} f5 {[%emt 0:04:36]} 28. Ke1 {[%emt 0:01:30]} c4 {[%emt 0:00:42]} 29. Bc6 {[%emt 0:02:38]} Bb4 {[%emt 0:00:34]} 30. Kd1 {[%emt 0:01:00]} Ne7 {[%emt 0:01:37]} 31. Ba4 {[%emt 0:00:53]} Bxa5 {[%emt 0:01:06]} 32. Bxa7 {[%emt 0:00:08]} Nc8 {[%emt 0:03:08]} 33. Bc5 {[%emt 0:00:48]} Ne7 {[%emt 0:02:08]} 34. g3 {[%emt 0:00:35]} c3 {[%emt 0:01:03]} 35. bxc3 {[%emt 0:01:32]} Bxc3 {[%emt 0:00:09]} 36. Bb3+ {[%emt 0:00:39]} Kf6 {[%emt 0:00:41]} 37. Bd6 {[%emt 0:00:54]} 1/2-1/2

[Event "CZE-ch 2020"]
[Site "Pilsen"]
[Date "2020.08.26"]
[Round "4.34"]
[White "Placer, Sebastian"]
[Black "Nemcova, Karin"]
[Result "0-1"]
[ECO "E36"]
[WhiteElo "2097"]
[BlackElo "1983"]
[Annotator "ChessBase"]
[PlyCount "82"]
[EventDate "2020.08.23"]
[EventType "swiss"]
[EventCountry "CZE"]
[SourceTitle "playchess.com"]
[Source "ChessBase"]
[SourceQuality "1"]
[TimeControl "40/5400+30:1800+30"]

1. d4 {[%emt 0:00:00]} Nf6 {[%emt 0:00:00]} 2. c4 {[%emt 0:00:00]} e6 {[%emt 0:00:00]} 3. Nc3 {[%emt 0:00:10]} Bb4 {[%emt 0:00:00]} 4. Qc2 {[%emt 0:00:37]} d5 {[%emt 0:00:00]} 5. a3 {[%emt 0:00:47]} Bxc3+ {[%emt 0:00:18]} 6. Qxc3 {[%emt 0:00:09]} c5 {[%emt 0:00:14]} 7. dxc5 {[%emt 0:02:04]} d4 {[%emt 0:00:09]} 8. Qc2 {[%emt 0:04:04]} Nc6 {[%emt 0:01:03]} 9. e3 {[%emt 0:09:18]} e5 {[%emt 0:01:18]} 10. b4 {[%emt 0:07:03]} O-O {[%emt 0:02:18]} 11. Be2 {[%emt 0:08:48]} Be6 {[%emt 0:15:55]} 12. Bb2 {[%emt 0:07:36]} dxe3 {[%emt 0:02:18]} 13. fxe3 {[%emt 0:00:48]} Ng4 {[%emt 0:00:58]} 14. Bxg4 {[%emt 0:23:15]} Qh4+ {[%emt 0:00:48]} 15. Qf2 {[%emt 0:00:18]} Qxg4 {[%emt 0:00:11]} 16. Nf3 {[%emt 0:01:51]} Qxc4 {[%emt 0:03:27]} 17. Rc1 {[%emt 0:03:47]} Qa6 {[%emt 0:07:08]} 18. Qe2 {[%emt 0:02:52]} Qxe2+ {[%emt 0:00:21]} 19. Kxe2 {[%emt 0:00:01]} f6 {[%emt 0:00:22]} 20. Nd2 {[%emt 0:02:30]} Bd5 {[%emt 0:11:01]} 21. Rhg1 {[%emt 0:01:19]} a6 {[%emt 0:01:00]} 22. g3 {[%emt 0:02:57]} Rad8 {[%emt 0:00:46]} 23. Rgd1 {[%emt 0:00:41]} Be6 {[%emt 0:02:50]} 24. Rf1 {[%emt 0:05:10]} Bg4+ {[%emt 0:03:54]} 25. Ke1 {[%emt 0:00:04]} Rd3 {[%emt 0:00:23]} 26. Nc4 Rfd8 {[%emt 0:01:29]} 27. Rc2 {[%emt 0:10:13]} Bh3 {[%emt 0:18:26]} 28. Rg1 {[%emt 0:01:13]} Be6 {[%emt 0:00:34]} 29. Nd6 {[%emt 0:01:05]} Rxe3+ {[%emt 0:00:30]} 30. Kf2 {[%emt 0:00:07]} Rd3 {[%emt 0:00:16]} 31. Ke2 {[%emt 0:01:41]} e4 {[%emt 0:02:09]} 32. Re1 {[%emt 0:02:47]} Rd7 {[%emt 0:14:51]} 33. Kf2 {[%emt 0:00:53]} f5 {[%emt 0:00:48]} 34. Re3 {[%emt 0:01:02]} Rd1 {[%emt 0:00:46]} 35. Re1 {[%emt 0:00:28]} Rd5 {[%emt 0:00:53]} 36. Nc4 {[%emt 0:00:59]} Rd3 {[%emt 0:01:07]} 37. Nd6 {[%emt 0:00:16]} Na7 {[%emt 0:02:08]} 38. Re3 {[%emt 0:00:59]} Nb5 {[%emt 0:01:17]} 39. Nxb5 {[%emt 0:00:56]} axb5 {[%emt 0:00:06]} 40. Rc3 {[%emt 0:00:37]} Rd2+ {[%emt 0:00:34]} 41. Re2 {[%emt 0:30:01]} Bc4 0-1

[Event "CZE-ch 2020"]
[Site "Pilsen"]
[Date "2020.08.26"]
[Round "4.35"]
[White "Benes, Miroslav"]
[Black "Smolik, Jachym"]
[Result "1/2-1/2"]
[ECO "E46"]
[WhiteElo "2011"]
[BlackElo "2121"]
[Annotator "ChessBase"]
[PlyCount "60"]
[EventDate "2020.08.23"]
[EventType "swiss"]
[EventCountry "CZE"]
[SourceTitle "playchess.com"]
[Source "ChessBase"]
[SourceQuality "1"]
[TimeControl "40/5400+30:1800+30"]

1. d4 {[%emt 0:00:00]} Nf6 {[%emt 0:01:32]} 2. c4 {[%emt 0:00:00]} e6 {[%emt 0:00:05]} 3. Nc3 {[%emt 0:00:00]} Bb4 {[%emt 0:00:04]} 4. e3 {[%emt 0:00:09]} O-O {[%emt 0:00:11]} 5. Nge2 {[%emt 0:00:06]} Re8 {[%emt 0:00:04]} 6. a3 {[%emt 0:00:06]} Bf8 {[%emt 0:00:04]} 7. d5 {[%emt 0:00:17]} a5 {[%emt 0:00:15]} 8. Nf4 {[%emt 0:04:36]} Na6 {[%emt 0:01:20]} 9. Bd3 {[%emt 0:05:05]} Nc5 {[%emt 0:02:04]} 10. Bc2 {[%emt 0:00:03]} b6 {[%emt 0:08:12]} 11. O-O {[%emt 0:07:23]} e5 {[%emt 0:05:02]} 12. Nfe2 {[%emt 0:02:25]} Nb7 {[%emt 0:16:58]} 13. Ng3 {[%emt 0:07:20]} Nd6 {[%emt 0:03:20]} 14. b3 {[%emt 0:01:49]} g6 {[%emt 0:04:11]} 15. Bb2 {[%emt 0:02:13]} h5 {[%emt 0:14:57]} 16. h3 {[%emt 0:10:39]} h4 {[%emt 0:04:22]} 17. Nge2 {[%emt 0:00:14]} Nh5 {[%emt 0:01:06]} 18. f4 {[%emt 0:12:12]} Bg7 {[%emt 0:00:18]} 19. Na4 {[%emt 0:08:14]} Ba6 {[%emt 0:06:13]} 20. Nac3 {[%emt 0:03:59]} e4 {[%emt 0:07:53]} 21. a4 {[%emt 0:00:42]} Nf5 {[%emt 0:02:59]} 22. Qd2 {[%emt 0:01:13]} Nhg3 {[%emt 0:03:46]} 23. Nxg3 {[%emt 0:00:44]} Nxg3 {[%emt 0:00:01]} 24. Rf2 {[%emt 0:02:09]} d6 {[%emt 0:01:13]} 25. Ra2 {[%emt 0:03:31]} Bc8 {[%emt 0:02:02]} 26. Nb5 {[%emt 0:02:36]} Bf5 {[%emt 0:02:18]} 27. Bxg7 {[%emt 0:00:24]} Kxg7 {[%emt 0:00:02]} 28. Bd1 {[%emt 0:01:39]} Qd7 {[%emt 0:01:01]} 29. Kh2 {[%emt 0:00:47]} f6 {[%emt 0:02:30]} 30. Qc3 {[%emt 0:00:34]} Rf8 {[%emt 0:02:17]} 1/2-1/2

[Event "CZE-ch 2020"]
[Site "Pilsen"]
[Date "2020.08.26"]
[Round "4.36"]
[White "Laurincova, Kristyna"]
[Black "Joukl, Zdenek"]
[Result "1-0"]
[ECO "B16"]
[WhiteElo "2008"]
[BlackElo "2062"]
[Annotator "ChessBase"]
[PlyCount "113"]
[EventDate "2020.08.23"]
[EventType "swiss"]
[EventCountry "CZE"]
[SourceTitle "playchess.com"]
[Source "ChessBase"]
[SourceQuality "1"]
[TimeControl "40/5400+30:1800+30"]

1. e4 {[%emt 0:00:00]} c6 {[%emt 0:00:31]} 2. d4 {[%emt 0:00:00]} d5 {[%emt 0:00:05]} 3. Nc3 {[%emt 0:00:00]} dxe4 {[%emt 0:00:13]} 4. Nxe4 {[%emt 0:00:00]} Nf6 {[%emt 0:00:17]} 5. Nxf6+ gxf6 {[%emt 0:00:06]} 6. Nf3 {[%emt 0:00:03]} Bf5 {[%emt 0:00:19]} 7. Bd3 {[%emt 0:04:21]} e6 {[%emt 0:00:27]} 8. Bxf5 {[%emt 0:01:42]} Qa5+ {[%emt 0:00:25]} 9. c3 {[%emt 0:05:17]} Qxf5 {[%emt 0:01:20]} 10. O-O {[%emt 0:02:25]} Rg8 {[%emt 0:00:36]} 11. Nd2 {[%emt 0:02:06]} Bd6 {[%emt 0:03:08]} 12. Qf3 {[%emt 0:01:23]} Qxf3 {[%emt 0:03:57]} 13. Nxf3 {[%emt 0:00:10]} Na6 {[%emt 0:02:49]} 14. Re1 {[%emt 0:01:12]} O-O-O {[%emt 0:03:12]} 15. Re4 {[%emt 0:05:16]} c5 {[%emt 0:09:36]} 16. Be3 {[%emt 0:07:01]} Kb8 {[%emt 0:03:58]} 17. Rh4 {[%emt 0:01:21]} Rg7 {[%emt 0:01:53]} 18. Bf4 {[%emt 0:07:06]} Bxf4 19. Rxf4 {[%emt 0:00:33]} f5 {[%emt 0:10:12]} 20. Rd1 {[%emt 0:13:51]} Nc7 {[%emt 0:13:00]} 21. Rd2 {[%emt 0:14:25]} cxd4 {[%emt 0:11:49]} 22. Rfxd4 {[%emt 0:01:01]} Rxd4 {[%emt 0:00:18]} 23. Rxd4 {[%emt 0:00:41]} Kc8 {[%emt 0:01:29]} 24. Ne5 {[%emt 0:10:42]} f6 {[%emt 0:06:04]} 25. Nc4 {[%emt 0:00:49]} Nb5 {[%emt 0:05:53]} 26. Nd6+ {[%emt 0:00:23]} Nxd6 {[%emt 0:00:09]} 27. Rxd6 {[%emt 0:00:01]} Re7 {[%emt 0:00:33]} 28. Kf1 {[%emt 0:00:36]} Kc7 {[%emt 0:00:08]} 29. Rd3 {[%emt 0:00:08]} Rg7 {[%emt 0:03:08]} 30. g3 {[%emt 0:09:05]} h5 {[%emt 0:04:14]} 31. Rd4 {[%emt 0:12:59]} Rg4 {[%emt 0:08:49]} 32. Rd3 {[%emt 0:00:27]} Rg8 {[%emt 0:03:04]} 33. h3 {[%emt 0:00:52]} b6 {[%emt 0:01:23]} 34. Rd4 {[%emt 0:00:05]} Rd8 {[%emt 0:01:32]} 35. Rxd8 {[%emt 0:00:25]} Kxd8 {[%emt 0:00:02]} 36. Ke2 {[%emt 0:00:23]} Ke7 {[%emt 0:00:15]} 37. Kd3 {[%emt 0:00:53]} Kd6 {[%emt 0:00:08]} 38. Kc4 {[%emt 0:00:34]} a6 {[%emt 0:01:05]} 39. a4 {[%emt 0:00:18]} Kc6 {[%emt 0:02:46]} 40. b3 {[%emt 0:00:42]} Kd6 {[%emt 0:00:23]} 41. Kb4 {[%emt 0:17:15]} Kc6 {[%emt 0:12:51]} 42. a5 {[%emt 0:00:23]} b5 {[%emt 0:01:11]} 43. c4 {[%emt 0:00:11]} bxc4 {[%emt 0:00:26]} 44. Kxc4 {[%emt 0:02:08]} e5 {[%emt 0:01:24]} 45. b4 {[%emt 0:04:03]} e4 {[%emt 0:03:26]} 46. h4 {[%emt 0:00:13]} f4 {[%emt 0:02:04]} 47. gxf4 {[%emt 0:00:22]} f5 {[%emt 0:00:04]} 48. b5+ {[%emt 0:00:35]} axb5+ {[%emt 0:00:49]} 49. Kb4 {[%emt 0:00:07]} e3 {[%emt 0:05:43]} 50. fxe3 {[%emt 0:00:08]} Kd5 {[%emt 0:00:04]} 51. Kxb5 {[%emt 0:00:19]} Ke4 {[%emt 0:00:06]} 52. a6 {[%emt 0:00:03]} Kxe3 {[%emt 0:00:09]} 53. a7 {[%emt 0:00:03]} Kxf4 {[%emt 0:00:09]} 54. a8=Q {[%emt 0:00:04]} Kg3 {[%emt 0:00:49]} 55. Qh1 {[%emt 0:00:32]} f4 {[%emt 0:00:32]} 56. Kc4 {[%emt 0:00:04]} Kf2 {[%emt 0:02:33]} 57. Kd3 {[%emt 0:00:28]} 1-0

[Event "CZE-ch 2020"]
[Site "Pilsen"]
[Date "2020.08.26"]
[Round "4.37"]
[White "Kures, Michael"]
[Black "Janous, Marek"]
[Result "0-1"]
[ECO "B43"]
[WhiteElo "2019"]
[BlackElo "1968"]
[Annotator "ChessBase"]
[PlyCount "58"]
[EventDate "2020.08.23"]
[EventType "swiss"]
[EventCountry "CZE"]
[SourceTitle "playchess.com"]
[Source "ChessBase"]
[SourceQuality "1"]
[TimeControl "40/5400+30:1800+30"]

1. e4 {[%emt 0:00:00]} c5 {[%emt 0:00:00]} 2. Nf3 {[%emt 0:00:00]} e6 {[%emt 0:00:58]} 3. d4 {[%emt 0:00:00]} cxd4 {[%emt 0:00:05]} 4. Nxd4 {[%emt 0:00:00]} a6 {[%emt 0:00:03]} 5. Nc3 {[%emt 0:00:08]} Qc7 {[%emt 0:00:05]} 6. Bg5 {[%emt 0:00:22]} b5 {[%emt 0:02:24]} 7. a3 {[%emt 0:03:36]} Bb7 {[%emt 0:00:18]} 8. Be2 {[%emt 0:04:48]} Be7 {[%emt 0:02:36]} 9. Qd2 {[%emt 0:04:25]} h6 {[%emt 0:02:41]} 10. Bf4 {[%emt 0:09:43]} d6 {[%emt 0:00:05]} 11. Ndxb5 {[%emt 0:14:47]} axb5 {[%emt 0:15:58]} 12. Nxb5 {[%emt 0:00:35]} Qb6 {[%emt 0:03:55]} 13. Bxd6 {[%emt 0:00:59]} Na6 {[%emt 0:04:42]} 14. Bxe7 {[%emt 0:05:34]} Kxe7 {[%emt 0:02:41]} 15. O-O-O {[%emt 0:09:14]} Nf6 {[%emt 0:10:08]} 16. e5 {[%emt 0:02:45]} Nd5 {[%emt 0:00:05]} 17. c4 {[%emt 0:02:14]} Nc5 {[%emt 0:00:08]} 18. Kb1 {[%emt 0:02:22]} Ne4 {[%emt 0:12:49]} 19. Qd4 {[%emt 0:18:50]} Nxf2 {[%emt 0:01:52]} 20. c5 {[%emt 0:02:07]} Qa5 {[%emt 0:24:01]} 21. Qxf2 {[%emt 0:00:42]} Bc6 {[%emt 0:00:48]} 22. Nd4 {[%emt 0:12:47]} Nc3+ {[%emt 0:06:35]} 23. Ka1 {[%emt 0:00:08]} Bd5 {[%emt 0:04:24]} 24. Rc1 {[%emt 0:04:22]} Rhb8 {[%emt 0:01:43]} 25. Nc2 {[%emt 0:01:26]} Qa4 {[%emt 0:02:45]} 26. Rhf1 {[%emt 0:00:09]} Rf8 {[%emt 0:00:25]} 27. c6 {[%emt 0:00:46]} Qb3 {[%emt 0:00:41]} 28. Qc5+ {[%emt 0:00:36]} Ke8 {[%emt 0:00:09]} 29. Nb4 {[%emt 0:00:28]} Rxa3+ 0-1

[Event "CZE-ch 2020"]
[Site "Pilsen"]
[Date "2020.08.27"]
[Round "5.2"]
[White "Polak, Tomas"]
[Black "Laznicka, Viktor"]
[Result "0-1"]
[ECO "A81"]
[WhiteElo "2563"]
[BlackElo "2638"]
[Annotator "ChessBase"]
[PlyCount "120"]
[EventDate "2020.08.23"]
[EventType "swiss"]
[EventCountry "CZE"]
[SourceTitle "playchess.com"]
[Source "ChessBase"]
[SourceQuality "1"]
[TimeControl "40/5400+30:1800+30"]

1. d4 {[%emt 0:00:00]} f5 {[%emt 0:01:43]} 2. g3 {[%emt 0:04:15]} Nf6 {[%emt 0:00:21]} 3. Bg2 {[%emt 0:00:06]} g6 {[%emt 0:00:03]} 4. c3 {[%emt 0:02:46]} Bg7 {[%emt 0:05:31]} 5. Qb3 {[%emt 0:01:55]} Nc6 {[%emt 0:00:37]} 6. Nh3 {[%emt 0:02:20]} b6 {[%emt 0:05:01]} 7. O-O {[%emt 0:08:36]} Na5 {[%emt 0:05:40]} 8. Qc2 {[%emt 0:02:12]} Bb7 {[%emt 0:00:20]} 9. Nd2 {[%emt 0:06:31]} Bxg2 {[%emt 0:00:19]} 10. Kxg2 {[%emt 0:00:04]} Qc8 {[%emt 0:08:09]} 11. b4 {[%emt 0:10:26]} Nb7 {[%emt 0:01:40]} 12. e4 {[%emt 0:03:14]} fxe4 {[%emt 0:10:15]} 13. Nxe4 {[%emt 0:00:18]} Nxe4 {[%emt 0:00:08]} 14. Qxe4 {[%emt 0:00:03]} Nd6 {[%emt 0:00:05]} 15. Qf3 {[%emt 0:09:54]} Qb7 {[%emt 0:05:28]} 16. Qxb7 {[%emt 0:03:41]} Nxb7 {[%emt 0:00:10]} 17. Bf4 {[%emt 0:00:36]} d6 {[%emt 0:05:59]} 18. Ng5 {[%emt 0:04:27]} Kd7 {[%emt 0:00:40]} 19. Rae1 {[%emt 0:05:48]} h6 {[%emt 0:18:13]} 20. Ne6 {[%emt 0:00:58]} Bf6 {[%emt 0:00:04]} 21. c4 {[%emt 0:05:55]} c6 {[%emt 0:14:04]} 22. Re2 {[%emt 0:05:34]} a5 {[%emt 0:02:58]} 23. Rb1 {[%emt 0:01:34]} axb4 {[%emt 0:04:29]} 24. Rxb4 {[%emt 0:00:13]} Ra6 {[%emt 0:00:06]} 25. d5 {[%emt 0:04:52]} c5 {[%emt 0:01:19]} 26. Rb1 {[%emt 0:01:27]} Na5 {[%emt 0:00:49]} 27. Rc2 {[%emt 0:02:16]} Nc6 {[%emt 0:00:23]} 28. Nxc5+ {[%emt 0:05:19]} bxc5 {[%emt 0:00:26]} 29. Rb7+ {[%emt 0:00:23]} Kc8 {[%emt 0:00:15]} 30. dxc6 {[%emt 0:00:05]} Rxc6 {[%emt 0:00:03]} 31. Ra7 {[%emt 0:01:10]} g5 {[%emt 0:02:15]} 32. Bd2 {[%emt 0:02:15]} Rc7 {[%emt 0:00:16]} 33. Ra5 {[%emt 0:01:16]} Kd7 {[%emt 0:00:27]} 34. Bc3 {[%emt 0:00:53]} Bxc3 {[%emt 0:05:54]} 35. Rxc3 {[%emt 0:00:05]} Rb8 {[%emt 0:00:36]} 36. Rc2 {[%emt 0:00:53]} Rcb7 {[%emt 0:00:51]} 37. Re2 {[%emt 0:02:56]} Rb2 {[%emt 0:00:46]} 38. Re3 {[%emt 0:02:25]} R8b7 {[%emt 0:01:50]} 39. Kf3 {[%emt 0:00:43]} Rc2 {[%emt 0:00:15]} 40. Ra4 {[%emt 0:00:43]} Rd2 {[%emt 0:00:43]} 41. h3 {[%emt 0:05:22]} h5 {[%emt 0:03:50]} 42. Re2 {[%emt 0:05:17]} Rxe2 {[%emt 0:16:26]} 43. Kxe2 {[%emt 0:00:17]} Rb2+ {[%emt 0:00:05]} 44. Ke3 {[%emt 0:00:39]} Rc2 {[%emt 0:00:04]} 45. h4 {[%emt 0:07:32]} gxh4 {[%emt 0:02:31]} 46. gxh4 {[%emt 0:00:06]} Ke6 {[%emt 0:00:04]} 47. Kf4 {[%emt 0:04:12]} Kf6 {[%emt 0:00:21]} 48. f3 {[%emt 0:00:29]} Rd2 {[%emt 0:00:56]} 49. a3 {[%emt 0:01:50]} Rd4+ {[%emt 0:04:47]} 50. Kg3 {[%emt 0:00:13]} e5 {[%emt 0:01:04]} 51. Ra6 {[%emt 0:01:00]} Ke6 {[%emt 0:00:22]} 52. Ra8 {[%emt 0:01:41]} Rxc4 {[%emt 0:00:30]} 53. Rh8 {[%emt 0:00:14]} Rc3 {[%emt 0:00:53]} 54. Rh6+ {[%emt 0:00:29]} Kd5 {[%emt 0:00:17]} 55. Rxh5 {[%emt 0:00:11]} Rxa3 {[%emt 0:00:30]} 56. Rh8 {[%emt 0:03:34]} e4 {[%emt 0:01:04]} 57. h5 {[%emt 0:00:05]} Rxf3+ {[%emt 0:00:16]} 58. Kg4 {[%emt 0:00:04]} Rf1 {[%emt 0:00:44]} 59. h6 {[%emt 0:00:21]} e3 {[%emt 0:00:56]} 60. h7 {[%emt 0:00:25]} e2 {[%emt 0:00:30]} 0-1